bitfinex-derivatives/quotes_BTCF0:USTF0_20251216
["timestamp","ask_amount","ask_price","bid_price","bid_amount"]
[1765886013725,0.3176343,87246.0,87245.0,0.39697]
[1765886013920,1.0344743,87246.0,87245.0,0.30353]
[1765886014328,1.06018711,87246.0,87245.0,0.30353]
[1765886018216,1.06018711,87246.0,87245.0,0.39434]
[1765886020532,1.06018711,87246.0,87245.0,0.30353]
[1765886020730,1.06018711,87246.0,87245.0,0.39434]
[1765886021735,1.06010711,87246.0,87245.0,0.39434]
[1765886023535,1.0343943,87246.0,87245.0,0.39434]
[1765886023724,1.06014332,87246.0,87245.0,0.39434]
[1765886035642,0.33191902,87246.0,87245.0,0.39434]
[1765886035836,1.06002332,87246.0,87245.0,0.39434]
[1765886036033,1.04851902,87246.0,87245.0,0.39434]
[1765886038450,0.02574902,87246.0,87245.0,0.39434]
[1765886038642,0.02574902,87246.0,87245.0,0.39534]
[1765886039046,0.39566902,87246.0,87245.0,0.39534]
[1765886039248,0.17607902,87246.0,87245.0,0.39534]
[1765886039442,0.61735902,87246.0,87245.0,0.39534]
[1765886039643,0.02574902,87246.0,87245.0,0.39534]
[1765886040453,0.02574902,87246.0,87245.0,0.39434]
[1765886040657,0.02574902,87246.0,87245.0,0.39534]
[1765886040854,0.17607902,87246.0,87245.0,0.39534]
[1765886041162,0.32488902,87246.0,87245.0,0.39534]
[1765886041360,0.17607902,87246.0,87245.0,0.39534]
[1765886041542,0.32488902,87246.0,87245.0,0.39634]
[1765886042052,0.32488902,87246.0,87245.0,0.39534]
[1765886042251,0.32488902,87246.0,87245.0,0.39734]
[1765886042650,0.32488902,87246.0,87245.0,0.003]
[1765886042857,0.310605,87241.0,87240.0,0.418005]
[1765886043042,0.33635402,87241.0,87240.0,0.166645]
[1765886043239,0.33635402,87241.0,87240.0,0.324565]
[1765886043646,0.33635402,87241.0,87240.0,0.409985]
[1765886044355,0.33635402,87241.0,87240.0,0.42122159]
[1765886045154,0.33635402,87241.0,87240.0,0.42222159]
[1765886047553,0.3103154,87238.0,87233.0,0.3608]
[1765886047755,0.33606442,87238.0,87230.0,0.0114663]
[1765886047953,0.33606442,87238.0,87232.0,0.0114661]
[1765886048152,0.33606442,87238.0,87237.0,0.30333931]
[1765886048452,0.33606442,87238.0,87237.0,0.29184188]
[1765886048759,1.05262442,87238.0,87237.0,0.30326232]
[1765886048950,0.33606442,87238.0,87237.0,0.29284188]
[1765886049156,1.05262442,87238.0,87237.0,0.29284188]
[1765886049551,1.04115902,87238.0,87237.0,0.30330738]
[1765886050151,1.04115902,87238.0,87237.0,0.00017188]
[1765886050457,1.04115902,87238.0,87211.0,0.0114688]
[1765886050458,0.29885,87224.0,87223.0,0.51093]
[1765886050655,1.05262622,87224.0,87223.0,0.15013]
[1765886051446,1.05262622,87224.0,87223.0,0.29167]
[1765886051959,1.04115902,87224.0,87223.0,0.29167]
[1765886052160,1.04115902,87224.0,87223.0,0.29467]
[1765886052763,1.04115902,87224.0,87223.0,0.29367]
[1765886053152,1.04115902,87224.0,87223.0,0.29167]
[1765886053352,1.04115902,87224.0,87223.0,0.29267]
[1765886056665,1.04115902,87224.0,87223.0,0.001]
[1765886058270,0.29885,87219.0,87218.0,0.29396312]
[1765886058466,0.32459902,87219.0,87218.0,0.29396312]
[1765886059156,0.33606692,87219.0,87218.0,0.29396312]
[1765886061459,0.33606692,87219.0,87218.0,0.00229312]
[1765886061665,0.33606692,87219.0,87218.0,0.15242312]
[1765886061973,0.33606692,87219.0,87218.0,0.00229312]
[1765886062572,0.33606692,87219.0,87218.0,0.15242312]
[1765886063276,0.33606692,87219.0,87218.0,0.00229312]
[1765886065886,0.33606692,87219.0,87218.0,0.15242312]
[1765886068383,0.33606692,87219.0,87218.0,0.00229312]
[1765886069382,0.33606692,87219.0,87218.0,0.15242312]
[1765886073680,1.05286692,87219.0,87218.0,0.29396312]
[1765886075181,1.41366692,87219.0,87218.0,0.29396312]
[1765886075481,1.41366692,87219.0,87218.0,0.00229312]
[1765886076283,1.41366692,87219.0,87218.0,0.29303312]
[1765886080796,1.05286692,87219.0,87218.0,0.29303312]
[1765886081098,1.41366692,87219.0,87218.0,0.29303312]
[1765886081487,1.41366692,87219.0,87218.0,0.14637312]
[1765886081699,1.41366692,87219.0,87218.0,0.00229312]
[1765886083592,0.69686692,87219.0,87218.0,0.14637312]
[1765886083791,1.41366692,87219.0,87218.0,0.14637312]
[1765886087501,1.41366692,87219.0,87218.0,0.00229312]
[1765886088295,1.47544668,87219.0,87218.0,0.00229312]
[1765886089102,1.47544668,87219.0,87218.0,0.14637312]
[1765886089103,1.41366692,87219.0,87218.0,0.14637312]
[1765886090091,1.41366692,87219.0,87218.0,0.29303312]
[1765886091196,1.47544668,87219.0,87218.0,0.29303312]
[1765886092000,0.38637878,87219.0,87218.0,0.30450112]
[1765886092302,0.58658902,87219.0,87218.0,0.30450112]
[1765886092901,0.02574902,87219.0,87218.0,0.30450112]
[1765886093104,0.3722656,87237.0,87231.0,0.3022063]
[1765886093307,0.34673188,87232.0,87231.0,0.3022063]
[1765886093492,0.47140188,87232.0,87231.0,0.3022063]
[1765886093692,0.00017188,87232.0,87231.0,0.3022063]
[1765886094890,0.31997976,87262.0,87260.0,0.08231]
[1765886095097,0.1291,87264.0,87263.0,0.29074]
[1765886095299,0.2582,87264.0,87263.0,0.29074]
[1765886097405,0.2582,87264.0,87263.0,0.3024222]
[1765886098310,0.00017184,87272.0,87271.0,0.29074]
[1765886098908,0.12779184,87272.0,87271.0,0.29074]
[1765886099090,0.25541184,87272.0,87271.0,0.29074]
[1765886099704,0.25641184,87272.0,87271.0,0.29074]
[1765886100206,0.00117184,87272.0,87271.0,0.29074]
[1765886100601,0.25527184,87272.0,87271.0,0.29074]
[1765886100914,0.12841184,87272.0,87271.0,0.29074]
[1765886101090,0.25527184,87272.0,87271.0,0.29074]
[1765886101296,1.84e-06,87274.0,87273.0,0.29074]
[1765886101610,0.6962574,87299.0,87298.0,0.29074]
[1765886102302,1.3778574,87299.0,87298.0,0.29074]
[1765886102902,1.3778574,87299.0,87298.0,1.79074]
[1765886103514,1.3664,87299.0,87298.0,1.8021975]
[1765886103702,1.3664,87299.0,87298.0,1.79074]
[1765886104298,1.0056,87299.0,87298.0,2.1629975]
[1765886104499,0.3608,87323.0,87322.0,0.30485]
[1765886104695,0.3181035,87329.0,87328.0,0.30485]
[1765886104902,0.3181035,87329.0,87324.0,0.09122]
[1765886104903,0.30665,87325.0,87324.0,0.39607]
[1765886105610,1.0890928,87334.0,87333.0,0.30485]
[1765886106013,1.07764,87334.0,87333.0,0.30485]
[1765886106514,1.02349,87334.0,87333.0,0.30485]
[1765886107518,0.30665,87334.0,87333.0,0.3164564]
[1765886108213,0.30765,87334.0,87333.0,0.3164564]
[1765886108401,0.1521,87334.0,87333.0,0.3164564]
[1765886108604,0.001,87334.0,87333.0,0.3164564]
[1765886109004,0.30765,87334.0,87333.0,0.3164564]
[1765886116111,0.1521,87334.0,87333.0,0.3164564]
[1765886116312,0.001,87334.0,87333.0,0.3164564]
[1765886118216,0.00228997,87338.0,87337.0,0.30485]
[1765886118604,0.15338997,87338.0,87337.0,0.3163024]
[1765886119213,0.30893997,87338.0,87337.0,0.30485]
[1765886119407,0.30993997,87338.0,87337.0,0.30485]
[1765886124016,0.15438997,87338.0,87337.0,0.30485]
[1765886124220,0.00328997,87338.0,87337.0,0.30485]
[1765886124419,0.15438997,87338.0,87337.0,0.30485]
[1765886124621,0.00328997,87338.0,87337.0,0.30485]
[1765886125423,0.15438997,87338.0,87337.0,0.30485]
[1765886125727,0.30993997,87338.0,87337.0,0.30485]
[1765886125915,0.3181028,87334.0,87333.0,0.3164564]
[1765886126114,0.3181028,87334.0,87333.0,0.0116064]
[1765886126315,0.3181039,87325.0,87324.0,0.39607]
[1765886126910,0.30665,87325.0,87324.0,0.39607]
[1765886127521,0.30665,87325.0,87324.0,0.76848309]
[1765886127723,0.3608,87335.0,87334.0,0.3163028]
[1765886127919,0.70504747,87335.0,87334.0,0.3163028]
[1765886128628,0.30665,87325.0,87324.0,0.25443309]
[1765886128824,0.33282613,87325.0,87324.0,0.78093719]
[1765886129016,0.3608,87335.0,87334.0,0.30485]
[1765886129326,0.00228997,87338.0,87337.0,0.30485]
[1765886129519,0.1772991,87343.0,87342.0,0.39607]
[1765886129721,0.3328491,87343.0,87342.0,0.4075217]
[1765886129922,0.3328491,87343.0,87342.0,0.7683217]
[1765886129923,0.0261991,87343.0,87342.0,0.7683217]
[1765886131312,0.3608,87359.0,87358.0,0.3162996]
[1765886131523,0.66745,87359.0,87358.0,0.3162996]
[1765886132122,0.06154667,87371.0,87369.0,0.011448]
[1765886132420,0.06154667,87371.0,87370.0,0.30485]
[1765886132421,0.30665,87371.0,87370.0,0.30485]
[1765886133024,0.30665,87369.0,87368.0,0.5114]
[1765886133330,0.30665,87369.0,87368.0,0.66565]
[1765886135812,0.3119191,87362.0,87354.0,0.09122]
[1765886136022,0.3119191,87362.0,87349.0,0.3608]
[1765886136226,0.3119191,87362.0,87348.0,0.09122]
[1765886136425,0.3119191,87362.0,87339.0,0.09355]
[1765886136426,0.3119191,87362.0,87339.0,0.1050021]
[1765886136723,0.39403857,87362.0,87361.0,8e-08]
[1765886136923,0.3119191,87362.0,87361.0,8e-08]
[1765886138820,0.39403857,87362.0,87361.0,8e-08]
[1765886139722,0.3119191,87362.0,87361.0,8e-08]
[1765886139927,0.15366,87362.0,87361.0,0.29390008]
[1765886141132,0.30047,87362.0,87361.0,0.29390008]
[1765886141314,0.3119191,87362.0,87361.0,0.29390008]
[1765886141521,0.0114491,87362.0,87361.0,8e-08]
[1765886142824,0.71688,87364.0,87361.0,8e-08]
[1765886143232,0.33790498,87363.0,87362.0,0.2939]
[1765886144127,0.33790498,87363.0,87362.0,0.15013]
[1765886144333,0.33790498,87363.0,87362.0,0.2939]
[1765886146930,0.33790498,87363.0,87362.0,0.15013]
[1765886147517,0.03743498,87363.0,87361.0,8e-08]
[1765886147722,0.02598598,87362.0,87361.0,8e-08]
[1765886148731,0.33790508,87362.0,87361.0,0.29390008]
[1765886149528,0.03743508,87362.0,87361.0,8e-08]
[1765886150433,0.00017102,87370.0,87361.0,8e-08]
[1765886150434,0.30064102,87370.0,87369.0,0.3053482]
[1765886151035,0.05383102,87370.0,87369.0,0.3053482]
[1765886151423,0.0114491,87362.0,87361.0,8e-08]
[1765886151629,0.0114491,87364.0,87363.0,0.0114488]
[1765886151834,0.1618691,87364.0,87363.0,0.3053488]
[1765886152629,0.1618691,87364.0,87363.0,0.2939]
[1765886153734,0.15042,87364.0,87363.0,0.2939]
[1765886159243,0.17278,87364.0,87363.0,0.2939]
[1765886159748,0.07521,87364.0,87363.0,0.2939]
[1765886160142,0.71696,87368.0,87367.0,0.3053484]
[1765886160143,0.91144,87368.0,87367.0,0.3053484]
[1765886161439,0.19448,87368.0,87367.0,0.3053484]
[1765886161851,0.19448,87368.0,87367.0,0.2939]
[1765886162245,0.0114491,87362.0,87361.0,8e-08]
[1765886162749,0.03741036,87362.0,87361.0,8e-08]
[1765886163447,0.02596126,87362.0,87361.0,8e-08]
[1765886163660,0.202549,87363.0,87362.0,0.3107691]
[1765886163852,0.22851474,87363.0,87362.0,0.3107691]
[1765886164053,0.22851474,87363.0,87362.0,0.29932]
[1765886165963,0.21706574,87363.0,87362.0,0.3107691]
[1765886166164,0.21706574,87363.0,87362.0,0.29932]
[1765886166867,0.21706574,87363.0,87362.0,0.3107691]
[1765886167163,0.21706574,87363.0,87362.0,0.29932]
[1765886167766,0.21706574,87363.0,87362.0,0.3107691]
[1765886168270,0.21706574,87363.0,87362.0,0.29932]
[1765886168455,0.22851474,87363.0,87362.0,0.29932]
[1765886168966,0.22851474,87363.0,87362.0,0.15339]
[1765886169767,0.22851474,87363.0,87362.0,0.29932]
[1765886170168,0.22851474,87363.0,87362.0,0.3107691]
[1765886171667,0.22851474,87363.0,87362.0,0.29932]
[1765886172767,0.22851474,87363.0,87362.0,0.3107691]
[1765886173280,0.21706574,87363.0,87362.0,0.3107691]
[1765886175171,0.12151574,87363.0,87362.0,0.3107691]
[1765886175466,0.02596574,87363.0,87362.0,0.3107691]
[1765886175665,0.11794574,87363.0,87362.0,0.3107691]
[1765886175981,0.02596574,87363.0,87362.0,0.3107691]
[1765886176480,0.11794574,87363.0,87362.0,0.3107691]
[1765886177066,0.02596574,87363.0,87362.0,0.3107691]
[1765886177778,0.02596574,87363.0,87362.0,0.6715691]
[1765886181575,1.0888474,87375.0,87374.0,0.29932]
[1765886182178,1.0774,87375.0,87374.0,0.31066032]
[1765886182481,1.0774,87375.0,87362.0,0.002]
[1765886182482,0.011449,87363.0,87362.0,0.002]
[1765886182777,0.2425908,87349.0,87348.0,0.09066]
[1765886183082,0.6033908,87349.0,87348.0,0.24405]
[1765886183271,0.6033908,87349.0,87348.0,0.38998]
[1765886185174,0.6043908,87349.0,87348.0,0.38998]
[1765886188080,0.3608,87349.0,87348.0,0.38998]
[1765886188274,0.25395655,87360.0,87351.0,0.29932]
[1765886188275,0.2490405,87352.0,87351.0,0.29932]
[1765886191578,0.23759,87352.0,87351.0,0.29932]
[1765886193480,0.26343397,87352.0,87351.0,0.29932]
[1765886193688,0.14480397,87352.0,87351.0,0.29932]
[1765886194085,0.02584397,87352.0,87351.0,0.29932]
[1765886194284,0.25956397,87352.0,87351.0,0.29932]
[1765886194978,0.02584397,87352.0,87351.0,0.29932]
[1765886195379,0.02584397,87352.0,87351.0,0.30032]
[1765886195780,0.02584397,87352.0,87351.0,0.29932]
[1765886196491,0.02584397,87352.0,87351.0,0.30032]
[1765886197392,0.02584397,87352.0,87351.0,0.3117705]
[1765886198794,0.25836397,87352.0,87351.0,0.3117705]
[1765886200285,0.14109397,87352.0,87351.0,0.3117705]
[1765886202084,0.25567397,87352.0,87351.0,0.30032]
[1765886203695,0.14109397,87352.0,87351.0,0.30032]
[1765886206197,0.26645437,87352.0,87351.0,0.30032]
[1765886206595,0.26645437,87352.0,87351.0,0.3117705]
[1765886207597,0.03729437,87352.0,87351.0,0.3117705]
[1765886208304,0.26208437,87352.0,87351.0,0.30032]
[1765886208989,0.02584397,87352.0,87351.0,0.30032]
[1765886209189,0.25030397,87352.0,87351.0,0.30032]
[1765886210794,0.25030397,87352.0,87351.0,0.3117705]
[1765886210991,0.25030397,87352.0,87351.0,0.3107705]
[1765886211186,0.25030397,87352.0,87351.0,0.3117705]
[1765886214005,0.25030397,87352.0,87351.0,0.30032]
[1765886214499,0.25030397,87352.0,87351.0,0.001]
[1765886216903,0.2305305,87351.0,87350.0,0.08735]
[1765886217102,0.25637447,87351.0,87350.0,0.08735]
[1765886218198,0.25737447,87351.0,87350.0,0.08735]
[1765886218705,0.21774,87326.0,87325.0,0.08735]
[1765886218903,0.21774,87320.0,87310.0,0.08735]
[1765886219092,0.96518397,87320.0,87310.0,0.08735]
[1765886219809,0.96518397,87320.0,87311.0,0.00017177]
[1765886220298,0.96718397,87320.0,87311.0,0.00017177]
[1765886220804,0.96518397,87320.0,87311.0,0.00017177]
[1765886221002,0.96618397,87320.0,87311.0,0.00017177]
[1765886221404,0.96518397,87320.0,87311.0,0.00017177]
[1765886221603,0.3192656,87312.0,87311.0,0.30462177]
[1765886221908,1.42314957,87312.0,87311.0,0.30462177]
[1765886222105,1.41169397,87312.0,87311.0,0.30462177]
[1765886222608,1.41181641,87312.0,87311.0,0.30462177]
[1765886223709,1.41181641,87312.0,87311.0,0.30562177]
[1765886224002,0.51209244,87312.0,87311.0,0.30562177]
[1765886224207,0.90492244,87312.0,87311.0,0.30462177]
[1765886224404,0.90492244,87312.0,87311.0,0.30562177]
[1765886224605,1.25127244,87312.0,87311.0,0.30662177]
[1765886225903,1.25127244,87312.0,87311.0,0.30562177]
[1765886226099,1.25127244,87312.0,87311.0,0.30662177]
[1765886228208,1.25127244,87312.0,87311.0,0.00217177]
[1765886228508,1.29762244,87312.0,87311.0,0.00217177]
[1765886228815,1.29762244,87312.0,87302.0,0.01134202]
[1765886228816,0.34635,87303.0,87302.0,0.17531]
[1765886229009,0.7186068,87303.0,87302.0,0.01121369]
[1765886229213,0.3578074,87299.0,87298.0,0.35815102]
[1765886229399,1.0751274,87299.0,87298.0,0.36966667]
[1765886229996,1.0751274,87299.0,87298.0,0.01530667]
[1765886230201,1.0751274,87299.0,87298.0,0.36966667]
[1765886230905,1.06367,87299.0,87298.0,0.36966667]
[1765886231506,0.3608,87301.0,87300.0,0.35436]
[1765886231709,0.90048,87301.0,87300.0,0.45563]
[1765886232611,0.90048,87301.0,87300.0,0.45763]
[1765886233203,0.90048,87301.0,87300.0,0.45563]
[1765886233399,0.90048,87301.0,87300.0,0.45863]
[1765886234417,0.2608,87301.0,87300.0,0.45863]
[1765886234803,0.71753177,87307.0,87306.0,0.45563]
[1765886235607,0.71753177,87307.0,87306.0,0.4670864]
[1765886236005,0.71753177,87307.0,87306.0,0.4680864]
[1765886236407,0.00017177,87307.0,87306.0,0.4680864]
[1765886238516,0.00017177,87307.0,87306.0,0.4700864]
[1765886239115,0.00017177,87307.0,87306.0,0.4680864]
[1765886239413,0.17671177,87307.0,87306.0,0.4690864]
[1765886239612,0.07671177,87307.0,87306.0,0.4690864]
[1765886240720,0.72495244,87312.0,87311.0,0.3658158]
[1765886240917,0.00012244,87312.0,87311.0,0.3658158]
[1765886242213,0.00012244,87312.0,87311.0,0.3668158]
[1765886242417,0.00012244,87312.0,87311.0,0.7276158]
[1765886242811,0.00012244,87312.0,87311.0,0.7296158]
[1765886243012,0.71728,87324.0,87311.0,0.7296158]
[1765886243013,0.3578042,87323.0,87322.0,0.35436]
[1765886243412,0.3578042,87323.0,87322.0,0.3658143]
[1765886245223,0.38445958,87323.0,87322.0,0.3658143]
[1765886245613,0.38445958,87323.0,87322.0,0.3668143]
[1765886247318,0.37300538,87323.0,87322.0,0.3668143]
[1765886248924,0.02665538,87323.0,87322.0,0.3668143]
[1765886249427,0.3722537,87328.0,87327.0,0.3658137]
[1765886249428,0.34635,87328.0,87327.0,0.3658137]
[1765886249619,0.37304706,87328.0,87327.0,0.3658137]
[1765886250827,0.38450056,87328.0,87327.0,0.3658137]
[1765886251034,0.37304706,87328.0,87327.0,0.3658137]
[1765886251326,1.09016706,87328.0,87327.0,0.3658137]
[1765886251528,0.37304706,87328.0,87327.0,0.3658137]
[1765886251729,1.10162056,87328.0,87327.0,0.3658137]
[1765886251928,0.20323706,87328.0,87327.0,0.3658137]
[1765886252124,1.09016706,87328.0,87327.0,0.3658137]
[1765886252430,1.09016706,87328.0,87327.0,0.3668137]
[1765886253226,1.09016706,87328.0,87327.0,0.3658137]
[1765886253431,1.09016706,87328.0,87327.0,0.3668137]
[1765886253926,1.09016706,87328.0,87327.0,0.3678137]
[1765886254117,0.37304706,87328.0,87327.0,0.3678137]
[1765886254315,0.34635,87328.0,87327.0,0.3678137]
[1765886254732,0.34635,87328.0,87327.0,0.3658137]
[1765886254925,0.34635,87328.0,87327.0,0.3668137]
[1765886255326,0.34635,87328.0,87327.0,0.3658137]
[1765886255624,0.34635,87328.0,87327.0,0.3668137]
[1765886258739,0.17654,87328.0,87327.0,0.3668137]
[1765886258930,0.07654,87328.0,87327.0,0.3668137]
[1765886259122,0.18433,87328.0,87327.0,0.3668137]
[1765886259326,0.09214,87328.0,87327.0,0.3668137]
[1765886260535,0.23522217,87337.0,87336.0,0.3795725]
[1765886260731,0.80556385,87337.0,87336.0,0.3795725]
[1765886262035,0.02661145,87337.0,87336.0,0.3795725]
[1765886262237,0.3608,87343.0,87342.0,0.3795717]
[1765886262238,0.44557,87343.0,87342.0,0.3795717]
[1765886262438,0.47218275,87343.0,87342.0,0.3795717]
[1765886263537,0.47218275,87343.0,87342.0,0.3805717]
[1765886264045,0.47218275,87343.0,87342.0,0.36912]
[1765886264232,0.47218275,87343.0,87342.0,0.36812]
[1765886264631,0.47218275,87343.0,87342.0,0.36912]
[1765886272535,0.42974275,87343.0,87342.0,0.36912]
[1765886272746,0.38741275,87343.0,87342.0,0.36912]
[1765886273249,0.24500977,87352.0,87351.0,0.3795705]
[1765886273449,0.09839912,87352.0,87351.0,0.3795705]
[1765886274951,0.09939912,87352.0,87351.0,0.3795705]
[1765886275443,0.09939912,87352.0,87351.0,0.39107232]
[1765886276052,0.09839912,87352.0,87351.0,0.39107232]
[1765886276252,0.09939912,87352.0,87351.0,0.39107232]
[1765886277845,0.09839912,87352.0,87351.0,0.39107232]
[1765886278042,0.10984952,87352.0,87351.0,0.39107232]
[1765886278445,0.09839912,87352.0,87351.0,0.39107232]
[1765886279349,0.10984952,87352.0,87351.0,0.39107232]
[1765886279952,0.10984952,87352.0,87351.0,0.37962182]
[1765886281644,0.06107,87351.0,87350.0,0.10506]
[1765886281843,0.06107,87351.0,87350.0,0.29559]
[1765886281844,0.08768912,87351.0,87350.0,0.29559]
[1765886282348,0.08768912,87351.0,87350.0,0.47318]
[1765886282944,0.08868912,87351.0,87350.0,0.47318]
[1765886284353,0.08968912,87351.0,87350.0,0.47318]
[1765886284552,0.08868912,87351.0,87350.0,0.47318]
[1765886286655,0.80528912,87351.0,87350.0,0.47318]
[1765886286856,0.80528912,87351.0,87350.0,0.10506]
[1765886287051,0.80538522,87351.0,87350.0,0.28714]
[1765886287260,0.80538522,87351.0,87350.0,0.48312]
[1765886289065,0.80438522,87351.0,87350.0,0.48312]
[1765886290877,0.80538522,87351.0,87350.0,0.48312]
[1765886291671,0.80538522,87351.0,87350.0,0.4945707]
[1765886293365,0.08878522,87351.0,87350.0,0.4945707]
[1765886293664,0.81675572,87351.0,87350.0,0.4945707]
[1765886293865,0.81575572,87351.0,87350.0,0.4945707]
[1765886294169,0.80430522,87351.0,87350.0,0.4945707]
[1765886295273,0.08778522,87351.0,87350.0,0.4945707]
[1765886295473,0.80426522,87351.0,87350.0,0.4945707]
[1765886296671,0.74319522,87351.0,87350.0,0.4945707]
[1765886296862,0.76498522,87351.0,87350.0,0.4945707]
[1765886297066,0.74319522,87351.0,87350.0,0.4945707]
[1765886297276,0.76502144,87351.0,87350.0,0.4945707]
[1765886297473,0.78688144,87351.0,87350.0,0.4945707]
[1765886297673,0.78629144,87351.0,87350.0,0.4945707]
[1765886298779,0.78629144,87351.0,87350.0,0.4955707]
[1765886299282,0.78629144,87351.0,87350.0,0.4945707]
[1765886299468,0.78621144,87351.0,87350.0,0.4955707]
[1765886301673,0.78617144,87351.0,87350.0,0.4955707]
[1765886301867,0.06981144,87351.0,87350.0,0.4955707]
[1765886304483,0.04854144,87351.0,87350.0,0.4955707]
[1765886304672,0.02675144,87351.0,87350.0,0.4955707]
[1765886306686,0.05966144,87351.0,87350.0,0.4955707]
[1765886306981,0.04377144,87351.0,87350.0,0.4955707]
[1765886307276,0.05522194,87351.0,87350.0,0.4955707]
[1765886307468,0.07111194,87351.0,87350.0,0.4955707]
[1765886308574,0.07111194,87351.0,87350.0,0.48412]
[1765886308775,0.07111194,87351.0,87350.0,0.001]
[1765886309078,0.0407918,87341.0,87340.0,0.10506]
[1765886309282,1.14466324,87341.0,87340.0,0.07928686]
[1765886310872,1.14566324,87341.0,87340.0,0.07928686]
[1765886311687,1.14666324,87341.0,87340.0,0.07928686]
[1765886313087,1.14666017,87341.0,87340.0,0.07928686]
[1765886315687,0.0935024,87337.0,87336.0,0.11941]
[1765886315882,0.12025077,87337.0,87336.0,0.11941]
[1765886316775,0.12125077,87337.0,87336.0,0.11941]
[1765886318078,0.02774837,87337.0,87336.0,0.50745]
[1765886318279,0.47826,87357.0,87356.0,0.3994899]
[1765886318784,0.52018,87357.0,87356.0,0.3994899]
[1765886319591,0.52118,87357.0,87356.0,0.3994899]
[1765886323685,0.52018,87357.0,87356.0,0.3994899]
[1765886325285,0.5316297,87357.0,87356.0,0.3994899]
[1765886326195,0.52018,87357.0,87356.0,0.3994899]
[1765886328499,0.5316297,87357.0,87356.0,0.3994899]
[1765886329599,0.52018,87357.0,87356.0,0.3994899]
[1765886330200,0.54676132,87357.0,87356.0,0.3994899]
[1765886332290,0.54676132,87357.0,87356.0,0.38804]
[1765886332495,0.0886505,87351.0,87350.0,0.10832]
[1765886332702,0.0772,87349.0,87348.0,0.00017177]
[1765886332896,0.0886518,87341.0,87340.0,0.10832]
[1765886333096,1.19291312,87341.0,87340.0,0.10832]
[1765886333294,1.19291312,87341.0,87340.0,0.30153]
[1765886333495,1.19291312,87341.0,87340.0,0.49636]
[1765886335291,1.19391312,87341.0,87340.0,0.49636]
[1765886338207,1.19391312,87341.0,87340.0,0.507812]
[1765886338607,1.18246132,87341.0,87340.0,0.507812]
[1765886340812,1.18146132,87341.0,87340.0,0.507812]
[1765886341513,1.18146132,87341.0,87340.0,0.49636]
[1765886341814,1.18146132,87341.0,87340.0,0.10832]
[1765886342014,1.18146132,87341.0,87335.0,0.10832]
[1765886342015,0.06672,87336.0,87335.0,0.10832]
[1765886342205,0.10475382,87336.0,87335.0,0.10832]
[1765886342400,0.0775929,87333.0,87332.0,0.00017177]
[1765886342605,0.46497422,87333.0,87332.0,0.00017177]
[1765886342816,0.46497422,87333.0,87332.0,0.38821177]
[1765886344508,0.46597422,87333.0,87332.0,0.38821177]
[1765886344711,0.45452132,87333.0,87332.0,0.38821177]
[1765886345302,0.45552132,87333.0,87332.0,0.38821177]
[1765886346319,0.45452132,87333.0,87332.0,0.38821177]
[1765886346502,0.45352132,87333.0,87332.0,0.38821177]
[1765886346706,0.45452132,87333.0,87332.0,0.38821177]
[1765886347013,0.46597422,87333.0,87332.0,0.38821177]
[1765886347215,0.45452132,87333.0,87332.0,0.38821177]
[1765886348110,0.45352132,87333.0,87332.0,0.38821177]
[1765886348311,0.45452132,87333.0,87332.0,0.38821177]
[1765886351420,0.45452132,87333.0,87332.0,0.50160177]
[1765886352322,0.45452132,87333.0,87332.0,0.30677177]
[1765886352516,0.45452132,87333.0,87332.0,0.49261177]
[1765886354818,0.45552132,87333.0,87332.0,0.49261177]
[1765886355011,1.17216132,87333.0,87332.0,0.49261177]
[1765886355210,0.45552132,87333.0,87332.0,0.49261177]
[1765886355416,1.17216132,87333.0,87332.0,0.49261177]
[1765886355611,1.13936132,87333.0,87332.0,0.49261177]
[1765886355817,1.07944,87333.0,87332.0,0.49261177]
[1765886356016,1.07844,87333.0,87332.0,0.49261177]
[1765886356218,1.07744,87333.0,87332.0,0.49261177]
[1765886356523,1.10404443,87333.0,87332.0,0.50037477]
[1765886356717,1.07744,87333.0,87332.0,0.50037477]
[1765886356917,1.07744,87333.0,87332.0,0.50137477]
[1765886357113,1.10404943,87333.0,87332.0,0.50137477]
[1765886357419,1.10408939,87333.0,87332.0,0.50137477]
[1765886357720,1.07748,87333.0,87332.0,0.50137477]
[1765886358119,1.11554211,87333.0,87332.0,0.30408177]
[1765886358315,1.11554211,87333.0,87332.0,0.11456177]
[1765886358510,1.11554211,87333.0,87332.0,0.11356177]
[1765886359021,1.11554211,87333.0,87332.0,0.00117177]
[1765886359615,1.11654211,87333.0,87332.0,0.00117177]
[1765886360220,0.0577245,87321.0,87320.0,0.11966618]
[1765886360421,1.16181371,87321.0,87320.0,0.49502618]
[1765886360718,1.16181371,87321.0,87320.0,0.29784]
[1765886362022,1.16181371,87321.0,87320.0,0.10832]
[1765886362222,0.0558655,87313.0,87312.0,0.00017177]
[1765886362428,0.44327471,87313.0,87312.0,0.00017177]
[1765886363224,1.14857921,87313.0,87312.0,0.37553177]
[1765886363527,1.15057921,87313.0,87312.0,0.00017177]
[1765886364124,1.15057921,87313.0,87312.0,0.37553177]
[1765886364517,1.15157921,87313.0,87312.0,0.37553177]
[1765886365011,1.14957921,87313.0,87312.0,0.37553177]
[1765886365216,1.15057921,87313.0,87312.0,0.37553177]
[1765886365819,1.14957921,87313.0,87312.0,0.37553177]
[1765886366016,1.15057921,87313.0,87312.0,0.37553177]
[1765886368128,1.15057921,87313.0,87312.0,0.00017177]
[1765886372522,1.15057921,87313.0,87312.0,0.18969177]
[1765886373134,1.15057921,87313.0,87312.0,0.00017177]
[1765886373929,1.15057921,87313.0,87312.0,0.36575177]
[1765886374737,1.15057921,87313.0,87312.0,0.00017177]
[1765886377524,0.43381921,87313.0,87312.0,0.34659177]
[1765886377730,1.11813921,87313.0,87312.0,0.34659177]
[1765886377927,1.11813921,87313.0,87312.0,0.00017177]
[1765886380635,0.02349,87306.0,87305.0,0.11339]
[1765886380940,0.02349,87306.0,87300.0,0.11339]
[1765886380941,0.0349471,87301.0,87300.0,0.11339]
[1765886381128,0.06155631,87301.0,87300.0,0.11339]
[1765886381644,0.06155631,87301.0,87300.0,0.28375]
[1765886382139,0.06155631,87301.0,87300.0,0.11339]
[1765886383634,0.06255631,87301.0,87300.0,0.11339]
[1765886383843,0.06255631,87301.0,87300.0,0.11439]
[1765886384540,0.06355631,87301.0,87300.0,0.11339]
[1765886385543,0.06355631,87301.0,87300.0,0.45981]
[1765886386542,0.06355631,87301.0,87300.0,0.11339]
[1765886386747,0.06355631,87301.0,87300.0,0.45981]
[1765886387350,0.0273474,87299.0,87295.0,0.11339]
[1765886387542,0.05395661,87299.0,87298.0,0.35021102]
[1765886388437,0.05395661,87299.0,87298.0,0.17415102]